[Event "GER-ch Youth U12w 2019"]
[Site "Willingen"]
[Date "2019.06.11"]
[Round "4.2"]
[White "Sereda, Yaroslava"]
[Black "Roncea, Andrea-Alexandra"]
[Result "1-0"]
[ECO "C70"]
[WhiteElo "1626"]
[BlackElo "1558"]
[Annotator "NA"]
[PlyCount "72"]
[EventDate "2019.06.07"]
[EventType "swiss"]
[EventRounds "9"]
[EventCountry "GER"]
[SourceTitle "playchess.com"]
[Source "ChessBase"]
[SourceQuality "1"]
[TimeControl "40/4500+30:900+30"]

1. e4 {[%emt 0:00:00]} e5 {[%emt 0:00:00]} 2. Nf3 {[%emt 0:00:00]} Nc6 {[%emt 0:00:00]} 3. Bb5 {[%emt 0:00:00]} a6 {[%emt 0:00:00]} 4. Ba4 {[%emt 0:00:00]} b5 {[%emt 0:00:00]} 5. Bb3 {[%emt 0:00:00]} Bb7 {[%emt 0:00:00]} 6. d4 {[%emt 0:00:00]} d6 {[%emt 0:00:00]} 7. c3 {[%emt 0:00:00]} Be7 {[%emt 0:00:00]} 8. O-O {[%emt 0:00:00]} Nf6 {[%emt 0:00:00]} 9. Re1 {[%emt 0:00:00]} O-O {[%emt 0:00:00]} 10. Nbd2 {[%emt 0:00:00]} h6 {[%emt 0:00:00]} 11. Nf1 {[%emt 0:00:00]} Re8 {[%emt 0:00:00]} 12. Ng3 {[%emt 0:00:00]} Bf8 {[%emt 0:00:00]} 13. a4 {[%emt 0:00:00]} Na5 {[%emt 0:00:00]} 14. Bc2 {[%emt 0:00:00]} Nc4 {[%emt 0:00:00]} 15. b3 {[%emt 0:09:48]} Nb6 {[%emt 0:00:00]} 16. axb5 {[%emt 0:01:59]} axb5 {[%emt 0:00:00]} 17. Bb2 {[%emt 0:02:20]} g6 {[%emt 0:00:00]} 18. Bd3 {[%emt 0:08:51]} c6 {[%emt 0:02:14]} 19. Qc2 {[%emt 0:04:01]} Bg7 {[%emt 0:04:46]} 20. Rxa8 {[%emt 0:05:14]} Bxa8 {[%emt 0:00:43]} 21. c4 {[%emt 0:02:43]} bxc4 {[%emt 0:01:40]} 22. bxc4 {[%emt 0:01:32]} Qc7 {[%emt 0:05:49]} 23. Rb1 {[%emt 0:09:15]} Nfd7 {[%emt 0:15:21]} 24. dxe5 {[%emt 0:04:25]} dxe5 {[%emt 0:02:35]} 25. c5 {[%emt 0:00:26]} Nc8 {[%emt 0:00:44]} 26. Ba3 {[%emt 0:01:41]} Ne7 {[%emt 0:02:47]} 27. Bc4 {[%emt 0:00:56]} Rb8 {[%emt 0:04:42]} 28. Rxb8+ {[%emt 0:01:17]} Qxb8 {[%emt 0:02:57]} 29. Qd3 {[%emt 0:03:47]} Nf8 {[%emt 0:04:23]} 30. Ba2 {[%emt 0:05:15]} Qe8 {[%emt 0:09:04]} 31. Bb2 {[%emt 0:03:04]} Nd7 {[%emt 0:01:31]} 32. Qd6 {[%emt 0:03:17]} Kh7 {[%emt 0:08:50]} 33. Bxf7 {[%emt 0:03:17]} Qxf7 {[%emt 0:00:25]} 34. Qxd7 {[%emt 0:00:13]} Qf8 {[%emt 0:05:49]} 35. Bxe5 {[%emt 0:01:09]} Bxe5 {[%emt 0:00:17]} 36. Nxe5 {[%emt 0:00:07]} Qf6 {[%emt 0:00:44] normal} 1-0

[Event "GER-ch Youth U12w 2019"]
[Site "Willingen"]
[Date "2019.06.11"]
[Round "4.3"]
[White "Petrosyan, Ani"]
[Black "Pohle, Saskia"]
[Result "0-1"]
[ECO "A34"]
[WhiteElo "1378"]
[BlackElo "1819"]
[Annotator "NA"]
[PlyCount "93"]
[EventDate "2019.06.07"]
[EventType "swiss"]
[EventRounds "9"]
[EventCountry "GER"]
[SourceTitle "playchess.com"]
[Source "ChessBase"]
[SourceQuality "1"]
[TimeControl "40/4500+30:900+30"]

1. c4 {[%emt 0:00:00]} c5 {[%emt 0:00:00]} 2. Nc3 {[%emt 0:00:00]} g6 {[%emt 0:00:00]} 3. Nf3 {[%emt 0:00:00]} Bg7 {[%emt 0:00:00]} 4. e3 {[%emt 0:00:00]} Nf6 {[%emt 0:00:00]} 5. Be2 {[%emt 0:00:00]} O-O {[%emt 0:00:00]} 6. O-O {[%emt 0:00:00]} Nc6 {[%emt 0:00:00]} 7. d4 {[%emt 0:00:00]} cxd4 {[%emt 0:00:00]} 8. exd4 {[%emt 0:00:00]} d5 {[%emt 0:00:00]} 9. b3 {[%emt 0:00:00]} b6 {[%emt 0:00:00]} 10. Be3 {[%emt 0:02:31]} Bb7 {[%emt 0:00:00]} 11. Rc1 {[%emt 0:03:20]} Rc8 {[%emt 0:00:00]} 12. Qc2 {[%emt 0:06:35]} Nb4 {[%emt 0:00:00]} 13. Qb1 {[%emt 0:01:52]} dxc4 {[%emt 0:00:00]} 14. bxc4 {[%emt 0:01:00]} Nc6 {[%emt 0:00:31]} 15. Rfd1 {[%emt 0:00:59]} Ba6 {[%emt 0:07:20]} 16. Nb5 {[%emt 0:04:30]} e6 {[%emt 0:02:55]} 17. Ne5 {[%emt 0:04:33]} Qe7 {[%emt 0:05:47]} 18. Nxc6 {[%emt 0:05:11]} Rxc6 {[%emt 0:00:10]} 19. Bf3 {[%emt 0:00:43]} Rcc8 {[%emt 0:00:16]} 20. Bf4 {[%emt 0:01:05]} Rfd8 {[%emt 0:01:54]} 21. Qb3 {[%emt 0:07:42]} Nh5 {[%emt 0:10:26]} 22. Be3 {[%emt 0:03:49]} e5 {[%emt 0:01:00]} 23. d5 {[%emt 0:01:36]} Bxb5 {[%emt 0:05:02]} 24. Qxb5 {[%emt 0:01:37]} Nf6 {[%emt 0:02:14]} 25. c5 {[%emt 0:02:56]} e4 {[%emt 0:05:50]} 26. d6 {[%emt 0:05:17]} Qe6 {[%emt 0:02:02]} 27. Be2 {[%emt 0:00:55]} bxc5 {[%emt 0:06:43]} 28. Bxc5 {[%emt 0:01:51]} Bf8 {[%emt 0:09:18]} 29. Bc4 {[%emt 0:23:11]} Qe5 {[%emt 0:06:35]} 30. Bxa7 {[%emt 0:01:56]} Qxb5 {[%emt 0:01:22]} 31. Bxb5 {[%emt 0:00:09]} Rxc1 {[%emt 0:00:33]} 32. Rxc1 {[%emt 0:00:16]} Bxd6 {[%emt 0:00:49]} 33. a4 {[%emt 0:00:40]} Bb4 {[%emt 0:01:53]} 34. Ra1 {[%emt 0:01:50]} Ba5 {[%emt 0:00:11]} 35. Kf1 {[%emt 0:01:14]} Nd5 {[%emt 0:01:44]} 36. Bc6 {[%emt 0:01:30]} Nc3 {[%emt 0:01:01]} 37. Be3 {[%emt 0:02:17]} f5 {[%emt 0:02:36]} 38. Rc1 {[%emt 0:00:38]} Na2 {[%emt 0:01:16]} 39. Ra1 {[%emt 0:00:40]} Nb4 {[%emt 0:01:30]} 40. Bb5 {[%emt 0:00:23]} Kg7 {[%emt 0:01:51]} 41. Ke2 {[%emt 0:15:48]} Nc2 {[%emt 0:16:57]} 42. Rd1 {[%emt 0:00:28]} Rxd1 {[%emt 0:01:43]} 43. Kxd1 {[%emt 0:00:15]} Nxe3+ {[%emt 0:00:29]} 44. fxe3 {[%emt 0:00:05]} Kf6 {[%emt 0:01:36]} 45. Kc2 {[%emt 0:00:04]} Ke5 {[%emt 0:00:56]} 46. g3 {[%emt 0:00:18]} g5 {[%emt 0:01:05]} 47. Be2 {[%emt 0:01:13] normal} 0-1

[Event "GER-ch Youth U12w 2019"]
[Site "Willingen"]
[Date "2019.06.11"]
[Round "4.4"]
[White "Peglau, Charis"]
[Black "Adelmeyer, Nelly"]
[Result "1/2-1/2"]
[ECO "A06"]
[WhiteElo "1514"]
[BlackElo "1420"]
[Annotator "NA"]
[PlyCount "97"]
[EventDate "2019.06.07"]
[EventType "swiss"]
[EventRounds "9"]
[EventCountry "GER"]
[SourceTitle "playchess.com"]
[Source "ChessBase"]
[SourceQuality "1"]
[TimeControl "40/4500+30:900+30"]

1. Nf3 {[%emt 0:00:00]} d5 {[%emt 0:00:00]} 2. g3 {[%emt 0:00:00]} Nf6 {[%emt 0:00:00]} 3. Bg2 {[%emt 0:00:00]} Bf5 {[%emt 0:00:00]} 4. d4 {[%emt 0:00:00]} e6 {[%emt 0:00:00]} 5. O-O {[%emt 0:00:00]} Be7 {[%emt 0:00:00]} 6. Bf4 {[%emt 0:00:00]} O-O {[%emt 0:00:00]} 7. Nbd2 {[%emt 0:00:00]} Nbd7 {[%emt 0:00:00]} 8. c4 {[%emt 0:00:00]} c6 {[%emt 0:00:00]} 9. Rc1 {[%emt 0:00:00]} Rc8 {[%emt 0:00:00]} 10. a3 {[%emt 0:00:00]} Qb6 {[%emt 0:00:00]} 11. b4 {[%emt 0:00:00]} a5 {[%emt 0:00:00]} 12. c5 {[%emt 0:00:00]} Qb5 {[%emt 0:00:00]} 13. Qb3 {[%emt 0:00:00]} axb4 {[%emt 0:01:06]} 14. axb4 {[%emt 0:00:00]} Qxe2 {[%emt 0:17:28]} 15. Rfe1 {[%emt 0:00:00]} Qd3 {[%emt 0:01:55]} 16. Rc3 {[%emt 0:00:00]} Qa6 {[%emt 0:01:14]} 17. Bf1 {[%emt 0:00:10]} b5 {[%emt 0:00:34]} 18. Rcc1 {[%emt 0:12:15]} Ra8 {[%emt 0:01:15]} 19. Ra1 {[%emt 0:06:28]} Qb7 {[%emt 0:00:18]} 20. Ne5 {[%emt 0:01:34]} Nxe5 {[%emt 0:12:32]} 21. Bxe5 {[%emt 0:01:21]} Ne4 {[%emt 0:00:18]} 22. Nxe4 {[%emt 0:01:52]} Bxe4 {[%emt 0:00:17]} 23. f3 {[%emt 0:00:32]} Bg6 {[%emt 0:00:38]} 24. Qc3 {[%emt 0:11:05]} Rxa1 {[%emt 0:12:08]} 25. Rxa1 {[%emt 0:00:10]} Ra8 {[%emt 0:00:06]} 26. Ra3 {[%emt 0:00:34]} Bd8 {[%emt 0:07:47]} 27. Qa1 {[%emt 0:01:40]} Rxa3 {[%emt 0:00:09]} 28. Qxa3 {[%emt 0:00:05]} Bc2 {[%emt 0:01:12]} 29. Kf2 {[%emt 0:12:50]} Ba4 {[%emt 0:01:43]} 30. Bh3 {[%emt 0:00:58]} Bc7 {[%emt 0:00:42]} 31. f4 {[%emt 0:02:00]} Bxe5 {[%emt 0:00:56]} 32. fxe5 {[%emt 0:00:09]} Qe7 {[%emt 0:00:49]} 33. Qe3 {[%emt 0:01:45]} f6 {[%emt 0:08:41]} 34. Kg2 Bc2 {[%emt 0:01:41]} 35. Qf4 {[%emt 0:12:25]} Be4+ {[%emt 0:00:25]} 36. Kg1 {[%emt 0:01:03]} fxe5 {[%emt 0:09:49]} 37. Qxe5 {[%emt 0:00:12]} Kf7 {[%emt 0:00:15]} 38. Qf4+ {[%emt 0:02:45]} Kg6 39. Qg4+ {[%emt 0:01:20]} Kf7 {[%emt 0:05:53]} 40. Qf4+ {[%emt 0:00:09]} Qf6 {[%emt 0:03:27]} 41. Qxf6+ {[%emt 0:22:09]} Kxf6 {[%emt 0:15:08]} 42. Kf2 {[%emt 0:00:08]} Bf5 {[%emt 0:00:50]} 43. Bg2 {[%emt 0:00:24]} e5 {[%emt 0:00:33]} 44. Ke3 {[%emt 0:00:45]} exd4+ {[%emt 0:01:27]} 45. Kxd4 {[%emt 0:00:09]} g5 {[%emt 0:00:00]} 46. Bh1 {[%emt 0:00:00]} Ke6 {[%emt 0:00:00]} 47. Bf3 {[%emt 0:00:00]} Bg6 {[%emt 0:00:00]} 48. Bg4+ {[%emt 0:00:00] normal} Bf5 {[%emt 0:00:00]} 49. Bf3 {[%emt 0:00:00] normal} 1/2-1/2

[Event "GER-ch Youth U12w 2019"]
[Site "Willingen"]
[Date "2019.06.11"]
[Round "4.5"]
[White "Fischer, Darja"]
[Black "Hubert, Charlotte"]
[Result "1/2-1/2"]
[ECO "C42"]
[WhiteElo "1480"]
[BlackElo "1311"]
[Annotator "NA"]
[PlyCount "52"]
[EventDate "2019.06.07"]
[EventType "swiss"]
[EventRounds "9"]
[EventCountry "GER"]
[SourceTitle "playchess.com"]
[Source "ChessBase"]
[SourceQuality "1"]
[TimeControl "40/4500+30:900+30"]

1. e4 {[%emt 0:00:00]} e5 {[%emt 0:00:00]} 2. Nf3 {[%emt 0:00:00]} Nf6 {[%emt 0:00:00]} 3. Nxe5 {[%emt 0:00:00]} d6 {[%emt 0:00:00]} 4. Nf3 {[%emt 0:00:00]} Nxe4 {[%emt 0:00:00]} 5. Nc3 {[%emt 0:00:00]} Nxc3 {[%emt 0:00:00]} 6. dxc3 {[%emt 0:00:00]} Be7 {[%emt 0:00:00]} 7. Be3 {[%emt 0:00:00]} Nc6 {[%emt 0:00:00]} 8. Qd2 {[%emt 0:00:00]} Be6 {[%emt 0:00:00]} 9. O-O-O {[%emt 0:00:00]} Qd7 {[%emt 0:00:00]} 10. Ng5 {[%emt 0:00:00]} O-O-O {[%emt 0:09:12]} 11. Nxe6 {[%emt 0:00:00]} Qxe6 {[%emt 0:01:24]} 12. Kb1 {[%emt 0:00:00]} a6 {[%emt 0:02:23]} 13. g3 {[%emt 0:00:00]} Qd7 {[%emt 0:21:40]} 14. Bg2 {[%emt 0:00:00]} g6 {[%emt 0:05:52]} 15. Rhe1 {[%emt 0:12:41]} Rhe8 {[%emt 0:03:13]} 16. a3 {[%emt 0:11:27]} f5 {[%emt 0:05:02]} 17. f4 {[%emt 0:07:21]} Bf6 {[%emt 0:03:28]} 18. c4 {[%emt 0:07:27]} Re7 {[%emt 0:09:06]} 19. c5 {[%emt 0:16:10]} dxc5 {[%emt 0:09:04]} 20. Bxc6 {[%emt 0:01:53]} Qxd2 {[%emt 0:01:04]} 21. Rxd2 {[%emt 0:03:27]} Rxd2 {[%emt 0:00:25]} 22. Bxb7+ {[%emt 0:01:25]} Kxb7 {[%emt 0:00:09]} 23. Bxd2 {[%emt 0:00:13]} Rxe1+ {[%emt 0:00:11]} 24. Bxe1 {[%emt 0:01:08]} Kc6 {[%emt 0:01:01]} 25. c4 {[%emt 0:01:50]} Bd4 {[%emt 0:01:49]} 26. Kc2 {[%emt 0:02:46]} Bf6 {normal} 1/2-1/2

[Event "GER-ch Youth U12w 2019"]
[Site "Willingen"]
[Date "2019.06.11"]
[Round "4.6"]
[White "Labuda, Annika"]
[Black "Trunz, Michelle"]
[Result "1/2-1/2"]
[ECO "B90"]
[WhiteElo "1251"]
[BlackElo "1505"]
[Annotator "NA"]
[PlyCount "75"]
[EventDate "2019.06.07"]
[EventType "swiss"]
[EventRounds "9"]
[EventCountry "GER"]
[SourceTitle "playchess.com"]
[Source "ChessBase"]
[SourceQuality "1"]
[TimeControl "40/4500+30:900+30"]

1. e4 {[%emt 0:00:00]} c5 {[%emt 0:00:00]} 2. Nf3 {[%emt 0:00:00]} d6 {[%emt 0:00:00]} 3. d4 {[%emt 0:00:00]} cxd4 {[%emt 0:00:00]} 4. Nxd4 {[%emt 0:00:00]} Nf6 {[%emt 0:00:00]} 5. Nc3 {[%emt 0:00:00]} a6 {[%emt 0:00:00]} 6. Be3 {[%emt 0:00:00]} e5 {[%emt 0:00:00]} 7. Nb3 {[%emt 0:00:00]} Be6 {[%emt 0:00:00]} 8. f3 {[%emt 0:00:00]} b5 {[%emt 0:00:00]} 9. Qd2 {[%emt 0:00:00]} Be7 {[%emt 0:00:00]} 10. O-O-O {[%emt 0:00:00]} O-O {[%emt 0:00:00]} 11. g4 {[%emt 0:00:00]} Qc7 {[%emt 0:00:00]} 12. g5 {[%emt 0:00:00]} Nh5 {[%emt 0:00:00]} 13. f4 {[%emt 0:00:00]} exf4 {[%emt 0:00:11]} 14. Bxf4 {[%emt 0:00:00]} Nxf4 {[%emt 0:00:41]} 15. Qxf4 {[%emt 0:00:00]} b4 {[%emt 0:01:24]} 16. Nd5 {[%emt 0:00:00]} Bxd5 {[%emt 0:00:27]} 17. exd5 {[%emt 0:00:00]} Rc8 {[%emt 0:00:33]} 18. Bd3 {[%emt 0:00:00]} a5 {[%emt 0:03:23]} 19. Nd2 {[%emt 0:06:08]} Nd7 {[%emt 0:01:01]} 20. Qe4 {[%emt 0:06:10]} Nf8 {[%emt 0:00:09]} 21. h4 {[%emt 0:01:23]} Re8 {[%emt 0:00:44]} 22. Qc4 {[%emt 0:01:36]} Qxc4 {[%emt 0:01:32]} 23. Nxc4 {[%emt 0:00:13]} Nd7 {[%emt 0:02:43]} 24. Rde1 {[%emt 0:02:18]} Nc5 {[%emt 0:01:26]} 25. Re3 {[%emt 0:01:57]} Nxd3+ {[%emt 0:00:39]} 26. Rxd3 {[%emt 0:00:18]} Bf8 {[%emt 0:00:22]} 27. Nb6 {[%emt 0:01:42]} Ra7 {[%emt 0:00:57]} 28. Rhd1 {[%emt 0:07:20]} Re4 {[%emt 0:03:06]} 29. Rd4 {[%emt 0:00:24]} Re2 {[%emt 0:00:45]} 30. R4d2 {[%emt 0:01:02]} Re8 {[%emt 0:00:16]} 31. Rd4 {[%emt 0:02:03]} g6 {[%emt 0:03:46]} 32. Nc4 {[%emt 0:01:37]} Ra6 {[%emt 0:01:33]} 33. Rf1 {[%emt 0:01:31]} Bg7 {[%emt 0:00:29]} 34. Rdf4 {[%emt 0:00:14]} Re7 {[%emt 0:00:27]} 35. Kd1 {[%emt 0:01:24]} h5 {[%emt 0:03:53] normal} 36. Re1 {[%emt 0:02:40] normal} Rxe1+ {[%emt 0:01:41]} 37. Kxe1 {[%emt 0:00:15]} Kf8 {[%emt 0:01:06] normal} 38. Re4 {[%emt 0:00:20] normal} 1/2-1/2

[Event "GER-ch Youth U12w 2019"]
[Site "Willingen"]
[Date "2019.06.11"]
[Round "4.7"]
[White "Wilmink, Anna"]
[Black "Glowiak, Alexandra"]
[Result "1-0"]
[ECO "C54"]
[WhiteElo "1466"]
[BlackElo "1439"]
[Annotator "NA"]
[PlyCount "63"]
[EventDate "2019.06.07"]
[EventType "swiss"]
[EventRounds "9"]
[EventCountry "GER"]
[SourceTitle "playchess.com"]
[Source "ChessBase"]
[SourceQuality "1"]
[TimeControl "40/4500+30:900+30"]

1. e4 {[%emt 0:00:00]} e5 {[%emt 0:00:00]} 2. Nf3 {[%emt 0:00:00]} Nc6 {[%emt 0:00:00]} 3. Bc4 {[%emt 0:00:00]} Bc5 {[%emt 0:00:00]} 4. c3 {[%emt 0:00:00]} Nf6 {[%emt 0:00:00]} 5. d4 {[%emt 0:00:00]} exd4 {[%emt 0:00:00]} 6. cxd4 {[%emt 0:00:00]} Bb4+ {[%emt 0:00:00]} 7. Bd2 {[%emt 0:00:00]} Bxd2+ {[%emt 0:00:00]} 8. Nbxd2 {[%emt 0:00:00]} d5 {[%emt 0:00:00]} 9. exd5 {[%emt 0:00:00]} Nxd5 {[%emt 0:00:00]} 10. Qb3 {[%emt 0:00:00]} Na5 {[%emt 0:00:00]} 11. Qa4+ {[%emt 0:00:00]} c6 {[%emt 0:00:00]} 12. Bxd5 {[%emt 0:00:00]} Qxd5 {[%emt 0:00:00]} 13. O-O {[%emt 0:00:00]} O-O {[%emt 0:00:00]} 14. Rfe1 {[%emt 0:00:00]} b6 {[%emt 0:02:09]} 15. Re5 {[%emt 0:00:00]} Qd7 {[%emt 0:01:12]} 16. Rae1 {[%emt 0:00:00]} Ba6 {[%emt 0:07:44]} 17. Re7 {[%emt 0:00:00]} Qc8 {[%emt 0:00:36]} 18. Qc2 {[%emt 0:01:55]} Nb7 {[%emt 0:06:04]} 19. Ng5 {[%emt 0:06:47]} g6 {[%emt 0:00:46]} 20. Qe4 {[%emt 0:02:49]} Nd6 {[%emt 0:01:52]} 21. Qh4 {[%emt 0:04:19]} h5 {[%emt 0:00:42]} 22. Qf4 {[%emt 0:01:44]} Nf5 {[%emt 0:00:51]} 23. Rc7 {[%emt 0:01:51]} Qd8 {[%emt 0:12:16]} 24. Rxc6 {[%emt 0:06:15]} Bb5 {[%emt 0:01:39]} 25. Rc7 {[%emt 0:03:01]} Qxd4 {[%emt 0:02:22]} 26. Qxd4 {[%emt 0:08:13]} Nxd4 {[%emt 0:00:03]} 27. h3 {[%emt 0:05:51]} Ne2+ {[%emt 0:04:42]} 28. Kh2 {[%emt 0:02:17]} Nf4 {[%emt 0:00:52]} 29. Re5 {[%emt 0:02:33]} Ba6 {[%emt 0:01:10]} 30. g3 {[%emt 0:02:55] normal} Nd3 {[%emt 0:01:14]} 31. Ree7 {[%emt 0:02:09]} Nxb2 {[%emt 0:01:10] normal} 32. Nxf7 {[%emt 0:02:11] normal} 1-0

[Event "GER-ch Youth U12w 2019"]
[Site "Willingen"]
[Date "2019.06.11"]
[Round "4.8"]
[White "Vianden, Ella"]
[Black "Voigt, Anastasia"]
[Result "0-1"]
[ECO "C96"]
[WhiteElo "1328"]
[BlackElo "1447"]
[Annotator "NA"]
[PlyCount "96"]
[EventDate "2019.06.07"]
[EventType "swiss"]
[EventRounds "9"]
[EventCountry "GER"]
[SourceTitle "playchess.com"]
[Source "ChessBase"]
[SourceQuality "1"]
[TimeControl "40/4500+30:900+30"]

1. e4 {[%emt 0:00:00]} e5 {[%emt 0:00:00]} 2. Nf3 {[%emt 0:00:00]} Nc6 {[%emt 0:00:00]} 3. Bb5 {[%emt 0:00:00]} a6 {[%emt 0:00:00]} 4. Ba4 {[%emt 0:00:00]} Nf6 {[%emt 0:00:00]} 5. O-O {[%emt 0:00:00]} Be7 {[%emt 0:00:00]} 6. Re1 {[%emt 0:00:00]} b5 {[%emt 0:00:00]} 7. Bb3 {[%emt 0:00:00]} O-O {[%emt 0:00:00]} 8. c3 {[%emt 0:00:00]} d6 {[%emt 0:00:00]} 9. h3 {[%emt 0:00:00]} Na5 {[%emt 0:00:00]} 10. Bc2 {[%emt 0:00:00]} Nc4 {[%emt 0:00:00]} 11. b3 {[%emt 0:00:00]} Nb6 {[%emt 0:00:00]} 12. d4 {[%emt 0:00:00]} exd4 {[%emt 0:00:00]} 13. cxd4 {[%emt 0:03:49]} c5 {[%emt 0:00:00]} 14. e5 {[%emt 0:13:17]} dxe5 {[%emt 0:03:21]} 15. dxe5 {[%emt 0:06:16]} Qxd1 {[%emt 0:01:22]} 16. Rxd1 {[%emt 0:00:28]} Nfd7 {[%emt 0:01:53]} 17. Bb2 {[%emt 0:07:57]} Bb7 {[%emt 0:01:16]} 18. Nbd2 {[%emt 0:03:10]} Rfe8 {[%emt 0:01:55]} 19. Re1 {[%emt 0:01:19]} Bd8 {[%emt 0:03:07]} 20. Re2 {[%emt 0:07:12]} Rc8 {[%emt 0:03:09]} 21. Rae1 {[%emt 0:08:51]} Bd5 {[%emt 0:00:47]} 22. Kf1 {[%emt 0:04:07]} c4 {[%emt 0:00:42]} 23. Re3 {[%emt 0:03:07]} b4 {[%emt 0:04:10]} 24. Bd4 {[%emt 0:06:32]} c3 {[%emt 0:01:19]} 25. Nb1 {[%emt 0:00:47]} Be6 {[%emt 0:03:10]} 26. a3 {[%emt 0:01:29]} a5 {[%emt 0:00:37]} 27. h4 {[%emt 0:02:44]} Nd5 {[%emt 0:01:00]} 28. R3e2 {[%emt 0:02:05]} h6 {[%emt 0:01:08]} 29. Bd3 {[%emt 0:01:43]} Nf4 {[%emt 0:01:42]} 30. Re3 {[%emt 0:01:46]} Nxd3 {[%emt 0:00:09]} 31. Rxd3 {[%emt 0:01:07]} Bxb3 {[%emt 0:00:27]} 32. Rc1 {[%emt 0:08:49]} Bc4 {[%emt 0:00:08]} 33. Ke2 {[%emt 0:01:44]} Bxd3+ {[%emt 0:00:12]} 34. Kxd3 {[%emt 0:00:04]} Nb6 35. Kc2 {[%emt 0:01:22]} Nd5 {[%emt 0:00:54]} 36. g4 {[%emt 0:01:20]} f6 {[%emt 0:02:30]} 37. g5 {[%emt 0:00:41]} fxg5 {[%emt 0:00:21]} 38. hxg5 {[%emt 0:00:24]} hxg5 {[%emt 0:00:20]} 39. Rg1 {[%emt 0:00:37]} Ne7 {[%emt 0:00:42]} 40. Rxg5 {[%emt 0:01:03]} Nc6 {[%emt 0:00:32]} 41. Rg6 {[%emt 0:15:55]} Nxd4+ {[%emt 0:15:20]} 42. Nxd4 {[%emt 0:00:06]} Rxe5 {[%emt 0:00:56]} 43. f3 {[%emt 0:01:02]} Bf6 {[%emt 0:01:03]} 44. Rg4 {[%emt 0:00:00]} Rg5 {[%emt 0:00:00]} 45. Rxg5 {[%emt 0:00:00]} Bxg5 {[%emt 0:00:00]} 46. Ne6 {[%emt 0:00:00]} Be7 {[%emt 0:00:00]} 47. axb4 {[%emt 0:00:00]} axb4 {[%emt 0:00:00]} 48. f4 {[%emt 0:00:00]} Rc4 {[%emt 0:00:00] normal} 0-1

[Event "GER-ch Youth U12w 2019"]
[Site "Willingen"]
[Date "2019.06.11"]
[Round "4.9"]
[White "Keymer, Cecilia"]
[Black "Stepanjan, Marianne"]
[Result "1-0"]
[ECO "D35"]
[WhiteElo "1511"]
[BlackElo "1312"]
[Annotator "NA"]
[PlyCount "47"]
[EventDate "2019.06.07"]
[EventType "swiss"]
[EventRounds "9"]
[EventCountry "GER"]
[SourceTitle "playchess.com"]
[Source "ChessBase"]
[SourceQuality "1"]
[TimeControl "40/4500+30:900+30"]

1. d4 {[%emt 0:00:00]} d5 {[%emt 0:00:00]} 2. c4 {[%emt 0:00:00]} e6 {[%emt 0:00:00]} 3. Nc3 {[%emt 0:00:00]} Nf6 {[%emt 0:00:00]} 4. cxd5 {[%emt 0:00:00]} exd5 {[%emt 0:00:00]} 5. Bg5 {[%emt 0:00:00]} Be7 {[%emt 0:00:00]} 6. e3 {[%emt 0:00:00]} Be6 {[%emt 0:00:00]} 7. Bd3 {[%emt 0:00:00]} Nbd7 {[%emt 0:00:00]} 8. h3 {[%emt 0:00:00]} c5 {[%emt 0:00:00]} 9. Nf3 {[%emt 0:00:00]} O-O {[%emt 0:00:00]} 10. O-O {[%emt 0:04:33]} Rc8 {[%emt 0:03:45]} 11. Rc1 {[%emt 0:10:03]} a6 {[%emt 0:14:33]} 12. a4 {[%emt 0:07:03]} Qb6 {[%emt 0:02:55]} 13. Qc2 {[%emt 0:03:52]} h6 {[%emt 0:02:30]} 14. Bh4 {[%emt 0:02:28]} c4 {[%emt 0:02:31]} 15. Be2 {[%emt 0:02:41]} Qa5 {[%emt 0:03:12]} 16. Ne5 {[%emt 0:03:16]} Rfe8 {[%emt 0:04:48]} 17. f4 {[%emt 0:05:11]} Nb8 {[%emt 0:05:46]} 18. Kh1 {[%emt 0:09:58]} g6 {[%emt 0:09:11]} 19. Nxg6 {[%emt 0:04:09]} Bd8 {[%emt 0:07:19]} 20. Ne5 {[%emt 0:04:00]} Nc6 {[%emt 0:04:42]} 21. Bxf6 {[%emt 0:02:10]} Bxf6 {[%emt 0:01:42]} 22. Bh5 {[%emt 0:00:57]} Nxe5 {[%emt 0:03:49]} 23. dxe5 {[%emt 0:01:20]} Bh4 {[%emt 0:00:22]} 24. f5 {[%emt 0:02:04] normal} 1-0